fUSD/lending_fUSD_20260308
["ID","MTS","AMOUNT","RATE_DAILY","PERIOD"]
[407970058,1772949048373,-3485.95,0.00049314,120]
[407970059,1772949048383,-500.0,0.00049315,120]
[407970060,1772949048393,-500.0,0.00049315,120]
[407970061,1772949048403,-500.0,0.00049315,120]
[407970062,1772949048413,-500.0,0.00049315,120]
[407970063,1772949048422,-500.0,0.00049315,120]
[407970064,1772949048433,-500.0,0.00049315,120]
[407970065,1772949048447,-500.0,0.00049315,120]
[407970066,1772949048456,-500.0,0.00049315,120]
[407970067,1772949048629,-500.0,0.00049315,120]
[407970068,1772949048640,-500.0,0.00049315,120]
[407970069,1772949048649,-500.0,0.00049315,120]
[407970070,1772949048660,-500.0,0.00049315,120]
[407970071,1772949048672,-500.0,0.00049315,120]
[407970072,1772949048683,-500.0,0.00049315,120]
[407970073,1772949048695,-500.0,0.00049315,120]
[407970074,1772949048705,-500.0,0.00049315,120]
[407970075,1772949048716,-500.0,0.00049315,30]
[407970076,1772949048724,-500.0,0.00049315,120]
[407970077,1772949048734,-500.0,0.00049315,120]
[407970078,1772949048743,-500.0,0.00049315,120]
[407970079,1772949048753,-500.0,0.00049315,120]
[407970080,1772949048763,-500.0,0.00049315,120]
[407970081,1772949048783,-500.0,0.00049315,120]
[407970082,1772949048795,-500.0,0.00049315,120]
[407970083,1772949048805,-500.0,0.00049315,120]
[407970084,1772949048816,-500.0,0.00049315,120]
[407970085,1772949048828,-500.0,0.00049315,120]
[407970086,1772949048839,-583.84080946,0.00049315,120]
[407970087,1772949048850,-500.0,0.00049315,120]
[407970088,1772949048860,-500.0,0.00049315,120]
[407970089,1772949048872,-500.0,0.00049315,120]
[407970090,1772949048883,-500.0,0.00049315,120]
[407970091,1772949048894,-500.0,0.00049315,120]
[407970092,1772949048904,-500.0,0.00049315,120]
[407970093,1772949048920,-508.15353722,0.00049315,120]
[407970094,1772949048930,-150.0,0.00049315,120]
[407970095,1772949048943,-717.77,0.00049315,120]
[407970096,1772949048953,-717.77,0.00049315,120]
[407970097,1772949048965,-717.77,0.00049315,120]
[407970098,1772949048976,-717.77,0.00049315,120]
[407970099,1772949048986,-717.77,0.00049315,120]
[407970100,1772949048997,-717.77,0.00049315,120]
[407970101,1772949049007,-717.77,0.00049315,120]
[407970102,1772949049017,-717.77,0.00049315,120]
[407970103,1772949049028,-717.77,0.00049315,120]
[407970104,1772949049038,-717.77,0.00049315,120]
[407970105,1772949049048,-717.77,0.00049315,120]
[407970106,1772949049057,-717.77,0.00049315,120]
[407970107,1772949049067,-717.77,0.00049315,120]
[407970108,1772949049077,-717.77,0.00049315,120]
[407970109,1772949049086,-717.77,0.00049315,120]
[407970110,1772949049096,-717.77,0.00049315,120]
[407970111,1772949049105,-500.0,0.00049315,2]
[407970112,1772949049115,-500.0,0.00049315,2]
[407970113,1772949049125,-500.0,0.00049315,2]
[407970114,1772949049134,-500.0,0.00049315,2]
[407970115,1772949049144,-500.0,0.00049315,2]
[407970116,1772949049153,-500.0,0.00049315,2]
[407970117,1772949049163,-500.0,0.00049315,2]
[407970118,1772949049173,-500.0,0.00049315,2]
[407970119,1772949049182,-500.0,0.00049315,2]
[407970120,1772949049191,-500.0,0.00049315,2]
[407970121,1772949049201,-500.0,0.00049315,2]
[407970122,1772949049212,-500.0,0.00049315,2]
[407970123,1772949049221,-500.0,0.00049315,2]
[407970124,1772949049231,-500.0,0.00049315,2]
[407970125,1772949049240,-500.0,0.00049315,120]
[407970126,1772949049249,-500.0,0.00049315,2]
[407970127,1772949049259,-500.0,0.00049315,2]
[407970128,1772949049268,-500.0,0.00049315,120]
[407970129,1772949049277,-500.0,0.00049315,2]
[407970130,1772949049287,-500.0,0.00049315,120]
[407970131,1772949049296,-500.0,0.00049315,120]
[407970132,1772949049306,-500.0,0.00049315,120]
[407970133,1772949049315,-536.51913395,0.00049315,120]
[407970134,1772949049324,-1000.0,0.0004937,30]
[407970135,1772949049333,-1228.53138,0.000494,120]
[407970136,1772949049343,-150.0,0.00049405,30]
[407970137,1772949049352,-500.0,0.00049452,60]
[407970138,1772949049364,-500.0,0.00049452,60]
[407970139,1772949049374,-155.05476178,0.00049471,30]
[407970140,1772949049383,-271.19576931,0.00049477,21]
[407970141,1772949049392,-1000.0,0.0004948,30]
[407970142,1772949049403,-754.03,0.00049489,60]
[407970143,1772949049413,-754.03,0.00049489,60]
[407970144,1772949049423,-178.97,0.000495,30]
[407970145,1772949049432,-1000.0,0.00049511,30]
[407970146,1772949049443,-1000.0,0.00049546,30]
[407970147,1772949049453,-439.24303689,0.00049576,30]
[407970148,1772949049462,-188.0,0.00049578,30]
[407970149,1772949049471,-3079.32,0.00049618,30]
[407970150,1772949049481,-1000.0,0.0004964,30]
[407970151,1772949049490,-350.0,0.0004964,13]
[407970152,1772949049499,-151.0,0.00049653,120]
[407970153,1772949049509,-500.0,0.00049655,2]
[407970154,1772949049519,-13551.4120462,0.00049656,2]
[407970155,1772949049528,-399529.1254071,0.00049656,2]
[407970156,1772949049538,-3079.32,0.0004967,30]
[407970157,1772949049547,-1000.0,0.00049674,30]
[407970158,1772949049556,-1000.0,0.00049679,30]
[407970159,1772949049565,-160.04,0.000497,30]
[407970160,1772949049574,-253.0,0.00049714,14]
[407970161,1772949049584,-3079.32,0.00049722,30]
[407970162,1772949049593,-151.0,0.00049722,120]
[407970163,1772949049602,-151.0,0.00049722,120]
[407970164,1772949049611,-151.0,0.00049722,120]
[407970165,1772949049620,-151.0,0.00049722,120]
[407970166,1772949049630,-526.763053,0.0004973,120]
[407970167,1772949049639,-204.304387,0.0004973,120]
[407970168,1772949049648,-150.0,0.00049735,30]
[407970169,1772949049658,-500.0,0.00049749,2]
[407970170,1772949049667,-1000.0,0.0004975,30]
[407970171,1772949049676,-150.0,0.00049756,30]
[407970172,1772949049685,-1000.0,0.00049758,30]
[407970173,1772949049694,-754.03,0.00049763,60]
[407970174,1772949049704,-754.03,0.00049763,60]
[407970175,1772949049713,-23297.92423419,0.00049766,15]
[407970176,1772949049723,-1979.57,0.00049797,30]
[407970177,1772949049732,-151.0,0.00049797,5]
[407970178,1772949049741,-156.587,0.00049797,5]
[407970179,1772949049750,-193.30408517,0.00049797,5]
[407970180,1772949049760,-866.52665649,0.000498,120]
[407970181,1772949049769,-667.35358706,0.000498,37]
[407970182,1772949049778,-882.97770763,0.000498,120]
[407970183,1772949049787,-452.33384016,0.000498,120]
[407970184,1772949049796,-212.05,0.000498,120]
[407970185,1772949049806,-45454.13609789,0.000498,15]
[407970186,1772949049815,-18129.79228572,0.000498,2]
[407970187,1772949049825,-3207.11135458,0.000498,2]
[407970188,1772949049834,-607.78015044,0.000498,2]
[407970189,1772949049843,-380.22933746,0.000498,2]
[407970190,1772949049852,-2432.4407562,0.000498,2]
[407970191,1772949049861,-366.15496032,0.000498,2]
[407970192,1772949049870,-1000.0,0.00049806,30]
[407970193,1772949049879,-1000.0,0.00049822,30]
[407970194,1772949049889,-800.0,0.00049827,18]
[407970195,1772949049899,-800.0,0.00049827,18]
[407970196,1772949049913,-800.0,0.00049827,18]
[407970197,1772949049922,-800.0,0.00049827,18]
[407970198,1772949049931,-800.0,0.00049827,18]
[407970199,1772949049941,-800.0,0.00049827,18]
[407970200,1772949049950,-800.0,0.00049827,18]
[407970201,1772949049959,-800.0,0.00049827,18]
[407970202,1772949049970,-800.0,0.00049827,34]
[407970203,1772949049980,-1000.0,0.00049829,30]
[407970204,1772949049990,-150.0,0.00049836,30]
[407970205,1772949050001,-200.0,0.00049839,15]
[407970206,1772949050010,-200.0,0.00049839,15]
[407970207,1772949050020,-200.0,0.00049839,15]
[407970208,1772949050029,-200.0,0.00049839,15]
[407970209,1772949050038,-200.0,0.00049839,15]
[407970210,1772949050048,-200.0,0.00049839,15]
[407970211,1772949050057,-200.0,0.00049839,15]
[407970212,1772949050067,-200.0,0.00049839,15]
[407970213,1772949050076,-200.0,0.00049839,15]
[407970214,1772949050086,-200.0,0.00049839,15]
[407970215,1772949050095,-200.0,0.00049839,15]
[407970216,1772949050105,-200.0,0.00049839,15]
[407970217,1772949050115,-200.0,0.00049839,15]
[407970218,1772949050125,-240.02207299,0.00049839,15]
[407970219,1772949050134,-151.25613122,0.00049839,15]
[407970220,1772949050144,-721.12765535,0.00049839,15]
[407970221,1772949050154,-2500.0,0.00049839,15]
[407970222,1772949050163,-2500.0,0.00049839,15]
[407970223,1772949050173,-500.0,0.00049839,15]
[407970224,1772949050183,-250.0,0.00049839,15]
[407970225,1772949050193,-250.0,0.00049839,15]
[407970226,1772949050204,-250.0,0.00049839,15]
[407970227,1772949050214,-250.0,0.00049839,15]
[407970228,1772949050224,-250.0,0.00049839,15]
[407970229,1772949050235,-250.0,0.00049839,15]
[407970230,1772949050245,-250.0,0.00049839,15]
[407970231,1772949050255,-163.77085491,0.00049839,15]
[407970232,1772949050265,-757.94767592,0.00049839,15]
[407970233,1772949050274,-3000.0,0.00049839,15]
[407970234,1772949050283,-3000.0,0.00049839,15]
[407970235,1772949050293,-609.621819,0.00049839,15]
[407970236,1772949050302,-201.4007416,0.00049839,15]
[407970237,1772949050312,-500.0,0.00049839,15]
[407970238,1772949050321,-250.0,0.00049839,15]
[407970239,1772949050330,-500.0,0.00049839,15]
[407970240,1772949050339,-250.0,0.00049839,15]
[407970241,1772949050348,-578.20924308,0.00049839,15]
[407970242,1772949050359,-500.0,0.00049839,15]
[407970243,1772949050370,-259.63761657,0.00049839,15]
[407970244,1772949050379,-500.0,0.00049839,15]
[407970245,1772949050389,-174.61919141,0.00049839,15]
[407970246,1772949050398,-500.0,0.00049839,15]
[407970247,1772949050415,-181.08010149,0.00049839,15]
[407970248,1772949050426,-500.0,0.00049839,15]
[407970249,1772949050437,-187.78006525,0.00049839,15]
[407970250,1772949050446,-500.0,0.00049839,15]
[407970251,1772949050456,-500.0,0.00049839,15]
[407970252,1772949050466,-194.72792766,0.00049839,15]
[407970253,1772949050475,-500.0,0.00049839,15]
[407970254,1772949050485,-500.0,0.00049839,15]
[407970255,1772949050495,-201.93286099,0.00049839,15]
[407970256,1772949050504,-500.0,0.00049839,15]
[407970257,1772949050514,-181.0801015,0.00049839,15]
[407970258,1772949050524,-500.0,0.00049839,15]
[407970259,1772949050533,-500.0,0.00049839,15]
[407970260,1772949050543,-500.0,0.00049839,15]
[407970261,1772949050552,-500.0,0.00049839,15]
[407970262,1772949050561,-500.0,0.00049839,15]
[407970263,1772949050571,-500.0,0.00049839,15]
[407970264,1772949050580,-500.0,0.00049839,15]
[407970265,1772949050589,-500.0,0.00049839,15]
[407970266,1772949050598,-500.0,0.00049839,15]
[407970267,1772949050607,-500.0,0.00049839,15]
[407970268,1772949050617,-743.50770149,0.00049839,15]
[407970269,1772949050625,-500.0,0.00049839,15]
[407970270,1772949050635,-780.89562276,0.00049839,15]
[407970271,1772949050645,-500.0,0.00049839,15]
[407970272,1772949050654,-250.0,0.00049839,15]
[407970273,1772949050664,-500.0,0.00049839,15]
[407970274,1772949050674,-250.0,0.00049839,15]
[407970275,1772949050684,-500.0,0.00049839,15]
[407970276,1772949050693,-250.0,0.00049839,15]
[407970277,1772949050703,-500.0,0.00049839,15]
[407970278,1772949050713,-394.2568823,0.00049839,15]
[407970279,1772949050722,-200.0,0.00049839,15]
[407970280,1772949050732,-200.0,0.00049839,15]
[407970281,1772949050741,-200.0,0.00049839,15]
[407970282,1772949050751,-262.90206542,0.00049839,15]
[407970283,1772949050762,-200.0,0.00049839,15]
[407970284,1772949050772,-272.62944185,0.00049839,15]
[407970285,1772949050782,-200.0,0.00049839,15]
[407970286,1772949050792,-282.71673119,0.00049839,15]
[407970287,1772949050801,-200.0,0.00049839,15]
[407970288,1772949050811,-293.17725025,0.00049839,15]
[407970289,1772949050820,-500.0,0.00049839,15]
[407970290,1772949050829,-200.0,0.00049839,15]
[407970291,1772949050839,-250.0,0.00049839,15]
[407970292,1772949050848,-304.02480851,0.00049839,15]
[407970293,1772949050858,-200.0,0.00049839,15]
[407970294,1772949050867,-250.0,0.00049839,15]
[407970295,1772949050877,-500.0,0.00049839,15]
[407970296,1772949050886,-272.62944185,0.00049839,15]
[407970297,1772949050896,-170.09100875,0.00049839,15]
[407970298,1772949050906,-200.0,0.00049839,15]
[407970299,1772949050915,-250.0,0.00049839,15]
[407970300,1772949050925,-500.0,0.00049839,15]
[407970301,1772949050935,-250.0,0.00049839,15]
[407970302,1772949050944,-200.0,0.00049839,15]
[407970303,1772949050954,-500.0,0.00049839,15]
[407970304,1772949050964,-250.0,0.00049839,15]
[407970305,1772949050974,-200.0,0.00049839,15]
[407970306,1772949050984,-500.0,0.00049839,15]
[407970307,1772949050993,-300.0,0.00049839,15]
[407970308,1772949051003,-250.0,0.00049839,15]
[407970309,1772949051013,-500.0,0.00049839,15]
[407970310,1772949051023,-250.0,0.00049839,15]
[407970311,1772949051033,-500.0,0.00049839,15]
[407970312,1772949051042,-250.0,0.00049839,15]
[407970313,1772949051052,-500.0,0.00049839,15]
[407970314,1772949051062,-250.0,0.00049839,15]
[407970315,1772949051072,-500.0,0.00049839,15]
[407970316,1772949051122,-355.53018622,0.00049839,15]
[407970317,1772949051131,-500.0,0.00049839,15]
[407970318,1772949051141,-500.0,0.00049839,15]
[407970319,1772949051150,-151.0,0.00049839,15]
[407970320,1772949051159,-151.0,0.00049839,15]
[407970321,1772949051170,-151.0,0.00049839,15]
[407970322,1772949051178,-506.34126719,0.00049839,15]
[407970323,1772949051188,-151.42631785,0.00049839,15]
[407970324,1772949051197,-151.0,0.00049839,15]
[407970325,1772949051206,-151.0,0.00049839,15]
[407970326,1772949051216,-151.0,0.00049839,15]
[407970327,1772949051225,-151.0,0.00049839,15]
[407970328,1772949051234,-151.0,0.00049839,15]
[407970329,1772949051243,-151.0,0.00049839,15]
[407970330,1772949051252,-151.0,0.00049839,15]
[407970331,1772949051262,-151.0,0.00049839,15]
[407970332,1772949051271,-151.0,0.00049839,15]
[407970333,1772949051281,-151.0,0.00049839,15]
[407970334,1772949051291,-151.0,0.00049839,15]
[407970335,1772949051301,-151.0,0.00049839,15]
[407970336,1772949051312,-151.0,0.00049839,15]
[407970337,1772949051322,-151.0,0.00049839,15]
[407970338,1772949051334,-151.0,0.00049839,15]
[407970339,1772949051345,-151.0,0.00049839,15]
[407970340,1772949051356,-151.0,0.00049839,15]
[407970341,1772949051370,-151.0,0.00049839,15]
[407970342,1772949051379,-151.0,0.00049839,15]
[407970343,1772949051390,-155.25791837,0.00049839,15]
[407970344,1772949051399,-151.0,0.00049839,15]
[407970345,1772949051411,-151.0,0.00049839,15]
[407970346,1772949051421,-151.0,0.00049839,15]
[407970347,1772949051431,-151.0,0.00049839,15]
[407970348,1772949051440,-151.0,0.00049839,15]
[407970349,1772949051449,-151.0,0.00049839,15]
[407970350,1772949051458,-151.0,0.00049839,15]
[407970351,1772949051468,-693.3919763,0.00049839,15]
[407970352,1772949051478,-719.04747942,0.00049839,15]
[407970353,1772949051488,-745.65223616,0.00049839,15]
[407970354,1772949051498,-773.2413689,0.00049839,15]
[407970355,1772949051509,-801.85129955,0.00049839,15]
[407970356,1772949051519,-831.51979763,0.00049839,15]
[407970357,1772949051528,-862.28603014,0.00049839,15]
[407970358,1772949051538,-894.19061326,0.00049839,15]
[407970359,1772949051548,-927.27566595,0.00049839,15]
[407970360,1772949051557,-961.58486559,0.00049839,15]
[407970361,1772949051567,-997.16350561,0.00049839,15]
[407970362,1772949051576,-200.0,0.0004984,7]
[407970363,1772949051585,-200.0,0.0004984,7]
[407970364,1772949051594,-151.0,0.0004984,14]
[407970365,1772949051604,-151.0,0.0004984,14]
[407970366,1772949051613,-151.0,0.0004984,14]
[407970367,1772949051623,-173.03890573,0.0004984,14]
[407970368,1772949051632,-151.0,0.0004984,14]
[407970369,1772949051641,-151.0,0.0004984,14]
[407970370,1772949051651,-151.0,0.0004984,14]
[407970371,1772949051660,-152.0,0.0004984,14]
[407970372,1772949051669,-1000.0,0.0004984,30]
[407970373,1772949051678,-1000.0,0.00049859,30]
[407970374,1772949051687,-300.0,0.00049863,120]
[407970375,1772949051697,-1131.23554881,0.00049866,90]
[407970376,1772949051706,-500.0,0.00049866,120]
[407970377,1772949051715,-321.7905359,0.00049866,120]
[407970378,1772949051724,-1000.0,0.00049866,30]
[407970379,1772949051734,-717.77,0.00049866,120]
[407970380,1772949051745,-717.77,0.00049866,120]
[407970381,1772949051756,-717.77,0.00049866,120]
[407970382,1772949051766,-717.77,0.00049866,120]
[407970383,1772949051776,-717.77,0.00049866,120]
[407970384,1772949051786,-717.77,0.00049866,120]
[407970385,1772949051795,-717.77,0.00049866,120]
[407970386,1772949051805,-717.79528834,0.00049866,120]
[407970387,1772949051815,-3485.95,0.00049866,120]
[407970388,1772949051825,-3485.95,0.00049866,120]
[407970389,1772949051834,-3485.95,0.00049866,120]
[407970390,1772949051844,-3485.95,0.00049866,120]
[407970391,1772949051854,-3485.95,0.00049866,120]
[407970392,1772949051863,-3485.95,0.00049866,120]
[407970393,1772949051872,-3485.95,0.00049866,120]
[407970394,1772949051881,-3486.03123058,0.00049866,120]
[407970395,1772949051892,-151.0,0.00049867,14]
[407970396,1772949051901,-151.0,0.00049867,14]
[407970397,1772949051912,-4398866.00207483,0.00049873,15]
[407970398,1772949052021,-414.0,0.00029943,2]
[407970399,1772949052032,-150.0,0.00029971,2]
[407970400,1772949052042,-150.0,0.0003147,2]
[407970401,1772949052052,-150.0,0.00033043,2]
[407970402,1772949052062,-181600.57862785,0.00049873,15]
[407970403,1772949052073,-33593.81594054,0.00049873,15]
[407970404,1772949052085,-9757.86707975,0.00049873,15]
[407970405,1772949052096,-1059.0034839,0.00049873,15]
[407970406,1772949052107,-3854007.66031493,0.00049873,15]
[407970407,1772949052119,-350.0,0.00049879,9]
[407970408,1772949052129,-345.84452511,0.0004989,7]
[407970409,1772949052140,-345.84452511,0.0004989,7]
[407970410,1772949052149,-154.6401334,0.00049897,120]
[407970411,1772949052158,-174.45,0.00049897,120]
[407970412,1772949052167,-499.7,0.00049899,2]
[407970413,1772949052176,-2651.98945348,0.000499,120]
[407970414,1772949052185,-19540.84898,0.000499,54]
[407970415,1772949052194,-563087.956077,0.000499,120]
[407970416,1772949052207,-3245.4683156,0.000499,120]
[407970417,1772949052245,-13145.17,0.00027397,10]
[407970418,1772949052254,-150.0,0.00034696,2]
[407970419,1772949052263,-150.0,0.0003643,2]
[407970420,1772949052272,-247427.98881886,0.000499,120]
[407970421,1772949052290,-150.0,0.00038252,2]
[407970422,1772949052301,-4291.23959371,0.000499,120]
[407970423,1772949052314,-4429.68294118,0.000499,120]
[407970424,1772949052328,-562.85656461,0.000499,120]
[407970425,1772949052339,-2933.58524127,0.000499,120]
[407970426,1772949052350,-7278.78791481,0.000499,120]
[407970427,1772949052363,-557.96001026,0.000499,120]
[407970428,1772949052435,-150.0,0.00040165,2]
[407970429,1772949052444,-150.0,0.00042173,120]
[407970430,1772949052453,-281.51,0.00045,30]
[407970431,1772949052461,-395.34,0.00045,30]
[407970432,1772949052470,-206.9,0.00045,30]
[407970433,1772949052479,-281.51,0.0004725,30]
[407970434,1772949052488,-206.9,0.0004725,30]
[407970435,1772949052497,-395.34,0.0004725,30]
[407970436,1772949052507,-281.51,0.00049613,30]
[407970437,1772949052516,-395.34,0.00049613,30]
[407970438,1772949052525,-269.917619,0.00049839,15]
[407970439,1772949052534,-369.88455668,0.00049839,15]
[407970440,1772949052543,-47242.0667044,0.000499,120]
[407970441,1772949052553,-521.50544742,0.000499,120]
[407970442,1772949052568,-150.0,0.00044281,120]
[407970443,1772949052577,-248074.70212637,0.000499,120]
[407970444,1772949052592,-970.51580393,0.000499,120]
[407970445,1772949416258,-500.0,0.00015,30]
[407970446,1772949416281,-500.92571844,0.00015,30]
[407970447,1772949416308,-181.1759498,0.00016,2]
[407970448,1772949599147,380.18972134,0.00016,2]
[407970449,1772949625451,1506.75374519,0.00015,2]
[407970450,1772949633620,353.3,0.00015471,2]
[407970451,1772949649941,513.49,0.00015471,2]
[407970452,1772949651735,2426.30456523,0.00015,14]
[407970453,1772949742344,-529.29171749,0.00015,14]
[407970454,1772949742371,-100.70828251,0.00015,2]
[407970462,1772950231506,-154.87,0.00014,2]
[407970463,1772950231516,-352.234,0.00014035,2]
[407970464,1772950231527,-247.766,0.00014035,2]
[407970465,1772950231536,-600.0,0.0001407,2]
[407970466,1772950231546,-600.0,0.00014387,2]
[407970467,1772950231555,-154.87,0.0001452,2]
[407970468,1772950231565,-150.0,0.00014677,2]
[407970469,1772950231574,-1200.0,0.00014999,2]
[407970470,1772950231583,-1200.0,0.00014999,2]
[407970471,1772950231592,-300.0,0.00014999,2]
[407970472,1772950231602,-7920.14383948,0.00015,2]
[407970473,1772950231611,-3067.55173912,0.00015,7]
[407970474,1772950231620,-250.0,0.00015,2]
[407970475,1772950231630,-154.87,0.0001504,2]
[407970476,1772950231640,-500.0,0.00015209,2]
[407970477,1772950231649,-500.0,0.00015209,2]
[407970479,1772950231658,-150.0,0.00015209,2]
[407970481,1772950231667,-150.0,0.00015209,2]
[407970482,1772950231677,-500.0,0.00015209,2]
[407970484,1772950231686,-150.0,0.00015209,2]
[407970486,1772950231695,-500.0,0.00015209,2]
[407970488,1772950231704,-500.0,0.00015209,2]
[407970489,1772950231714,-150.0,0.00015209,2]
[407970490,1772950231723,-502.61005398,0.00015264,2]
[407970491,1772950231738,-500.0,0.00015264,2]
[407970492,1772950231747,-150.0,0.00015264,2]
[407970493,1772950231756,-500.0,0.00015264,2]
[407970494,1772950231765,-500.0,0.00015264,2]
[407970495,1772950231775,-500.0,0.00015264,2]
[407970496,1772950231784,-150.0,0.00015264,2]
[407970497,1772950231793,-458.96329616,0.00015319,2]
[407970498,1772950231805,-150.0,0.00015319,2]
[407970499,1772950231814,-500.0,0.00015319,2]
[407970500,1772950231823,-500.0,0.00015319,2]
[407970501,1772950231833,-500.0,0.00015319,2]
[407970502,1772950231842,-150.0,0.00015319,2]
[407970503,1772950231851,-296.53552374,0.00015363,2]
[407970504,1772950231861,-7518.38989752,0.00015372,2]
[407970505,1772950231871,-215.0,0.00015373,2]
[407970506,1772950231880,-252.39746833,0.00015373,2]
[407970507,1772950231890,-194.28021837,0.00015373,2]
[407970508,1772950231899,-500.0,0.00015373,2]
[407970509,1772950231918,-150.0,0.00015373,2]
[407970510,1772950231928,-300.0,0.00015399,2]
[407970511,1772950231937,-600.0,0.000154,2]
[407970512,1772950231947,-250.0,0.000154,2]
[407970513,1772950231956,-600.0,0.000154,2]
[407970514,1772950231965,-5000.0,0.000154,2]
[407970515,1772950231974,-250.0,0.000154,2]
[407970516,1772950231983,-300.0,0.000154,2]
[407970517,1772950231993,-387.00607474,0.00015428,2]
[407970518,1772950232003,-201.78350854,0.00015428,2]
[407970519,1772950232012,-8282.71776944,0.00015462,2]
[407970520,1772950232024,-15133.61277433,0.00015462,2]
[407970521,1772950232033,-600.37,0.00015462,2]
[407970522,1772950232043,-164.34362702,0.0001547,2]
[407970523,1772950232053,-366.44952082,0.0001547,2]
[407970524,1772950232062,-500.0,0.0001547,2]
[407970525,1772950232071,-500.0,0.0001547,2]
[407970526,1772950232081,-500.0,0.0001547,2]
[407970527,1772950232091,-500.0,0.0001547,2]
[407970528,1772950232100,-500.0,0.0001547,2]
[407970529,1772950232109,-500.0,0.0001547,2]
[407970530,1772950232119,-500.0,0.0001547,2]
[407970531,1772950232128,-500.0,0.0001547,2]
[407970532,1772950232138,-500.0,0.0001547,2]
[407970533,1772950232147,-500.0,0.0001547,2]
[407970534,1772950232157,-500.0,0.0001547,2]
[407970535,1772950232166,-500.0,0.0001547,2]
[407970536,1772950232176,-500.0,0.0001547,2]
[407970537,1772950232185,-500.0,0.0001547,2]
[407970538,1772950232195,-500.0,0.0001547,2]
[407970539,1772950232204,-500.0,0.0001547,2]
[407970540,1772950232214,-79.2840914,0.0001547,2]
[407970541,1772950232226,-420.7159086,0.0001547,2]
[407970542,1772950232236,-500.0,0.0001547,2]
[407970543,1772950232245,-500.0,0.0001547,2]
[407970544,1772950232255,-500.0,0.0001547,2]
[407970545,1772950232264,-500.0,0.0001547,2]
[407970546,1772950232274,-500.0,0.0001547,2]
[407970547,1772950232282,-500.0,0.0001547,2]
[407970548,1772950232292,-500.0,0.0001547,2]
[407970549,1772950232301,-500.0,0.0001547,2]
[407970550,1772950232311,-500.0,0.0001547,2]
[407970551,1772950232320,-500.0,0.0001547,2]
[407970552,1772950232330,-500.0,0.0001547,2]
[407970553,1772950232339,-500.0,0.0001547,2]
[407970554,1772950232348,-500.0,0.0001547,2]
[407970555,1772950232419,-500.0,0.0001547,2]
[407970556,1772950232428,-500.0,0.0001547,2]
[407970557,1772950232438,-500.0,0.0001547,2]
[407970558,1772950232447,-580.26647382,0.0001547,2]
[407970559,1772950232456,-500.0,0.0001547,2]
[407970560,1772950232465,-500.0,0.0001547,2]
[407970561,1772950232474,-500.0,0.0001547,2]
[407970562,1772950232483,-500.0,0.0001547,2]
[407970563,1772950232492,-500.0,0.0001547,2]
[407970564,1772950232501,-9999.99,0.00015471,2]
[407970565,1772950232510,-2990.34,0.00015471,2]
[407970566,1772950232519,-555.49147335,0.00015471,2]
[407970567,1772950232530,-9444.49852665,0.00015471,2]
[407970568,1772950232539,-9999.99,0.00015471,2]
[407970569,1772950232548,-499.99,0.00015471,2]